[Event "Early-Titled-Tuesday-Blitz-March-26-2024"]
[Site "Chess.com"]
[Date "2024.03.26"]
[Round "6"]
[White "cthulhuuu"]
[Black "valeriocarnicelli"]
[Result "0-1"]
[WhiteElo "2400"]
[BlackElo "2549"]
[TimeControl "180+1"]
[EndTime "9:04:11 PDT"]
[Termination "valeriocarnicelli won by resignation"]

1. e4 {[%clk 0:02:59.8]} 1... e6 {[%clk 0:03:00.5]} 2. d3 {[%clk 0:03:00]} 2...
d5 {[%clk 0:03:00.8]} 3. Nd2 {[%clk 0:03:00.7]} 3... Nf6 {[%clk 0:03:01.2]} 4.
Ngf3 {[%clk 0:03:01.6]} 4... Be7 {[%clk 0:03:01.6]} 5. g3 {[%clk 0:03:02.2]}
5... O-O {[%clk 0:03:01.5]} 6. Bg2 {[%clk 0:03:03.1]} 6... c5 {[%clk 0:03:01.9]}
7. e5 {[%clk 0:03:03.5]} 7... Nfd7 {[%clk 0:03:02]} 8. O-O {[%clk 0:03:04.4]}
8... Nc6 {[%clk 0:03:02.6]} 9. Re1 {[%clk 0:03:05]} 9... b5 {[%clk 0:03:02.8]}
10. h4 {[%clk 0:03:05.6]} 10... h6 {[%clk 0:03:02.7]} 11. Nf1 {[%clk 0:03:05.4]}
11... Re8 {[%clk 0:03:02.9]} 12. Bf4 {[%clk 0:03:03.5]} 12... a5 {[%clk
0:03:01.6]} 13. h5 {[%clk 0:03:03.6]} 13... a4 {[%clk 0:03:00.2]} 14. a3 {[%clk
0:03:03.6]} 14... Nf8 {[%clk 0:02:58.8]} 15. Ne3 {[%clk 0:03:01.7]} 15... Bb7
{[%clk 0:02:56.9]} 16. Ng4 {[%clk 0:02:58.5]} 16... Nh7 {[%clk 0:02:55.8]} 17.
Qd2 {[%clk 0:02:56.9]} 17... Ng5 {[%clk 0:02:52.8]} 18. c3 {[%clk 0:02:48.5]}
18... Nxf3+ {[%clk 0:02:50.6]} 19. Bxf3 {[%clk 0:02:48.6]} 19... Bg5 {[%clk
0:02:50.9]} 20. Bxg5 {[%clk 0:02:46.9]} 20... Qxg5 {[%clk 0:02:51.8]} 21. Qxg5
{[%clk 0:02:46.8]} 21... hxg5 {[%clk 0:02:52.7]} 22. h6 {[%clk 0:02:47.3]} 22...
Ne7 {[%clk 0:02:45.1]} 23. hxg7 {[%clk 0:02:45.9]} 23... Kxg7 {[%clk 0:02:46]}
24. Nf6 {[%clk 0:02:46.1]} 24... Rh8 {[%clk 0:02:42.4]} 25. d4 {[%clk
0:02:46.2]} 25... Rac8 {[%clk 0:02:37]} 26. Kg2 {[%clk 0:02:37.8]} 26... Nf5
{[%clk 0:02:34.2]} 27. Bg4 {[%clk 0:02:31]} 27... cxd4 {[%clk 0:02:26.1]} 28.
Bxf5 {[%clk 0:02:30.9]} 28... dxc3 {[%clk 0:02:22.7]} 29. Bd3 {[%clk 0:02:20.4]}
29... d4+ {[%clk 0:02:20]} 30. Be4 {[%clk 0:02:20.1]} 30... Bxe4+ {[%clk
0:02:17.3]} 31. Nxe4 {[%clk 0:02:20.2]} 31... cxb2 {[%clk 0:02:13.7]} 32. Rab1
{[%clk 0:02:15]} 32... Rc2 {[%clk 0:02:14.2]} 33. Red1 {[%clk 0:02:01.7]} 33...
b4 {[%clk 0:02:11.6]} 34. Rxd4 {[%clk 0:01:44]} 34... Rb8 {[%clk 0:02:02.8]} 35.
Rd3 {[%clk 0:01:26.1]} 35... bxa3 {[%clk 0:01:54.3]} 36. Rxa3 {[%clk 0:01:25.9]}
36... Rc1 {[%clk 0:01:44]} 37. Nc3 {[%clk 0:00:57.8]} 37... Rb3 {[%clk 0:01:36]}
38. Rxb3 {[%clk 0:00:02.7]} 38... axb3 {[%clk 0:01:36.9]} 39. Rxb2 {[%clk
0:00:01.7]} 39... Rxc3 {[%clk 0:01:36.7]} 40. g4 {[%clk 0:00:01.7]} 40... Kf8
{[%clk 0:01:32.8]} 41. Rb1 {[%clk 0:00:02.1]} 41... Ke7 {[%clk 0:01:31.4]} 42.
f3 {[%clk 0:00:02.1]} 42... Kd7 {[%clk 0:01:31]} 43. Kg3 {[%clk 0:00:02.3]}
43... Kc6 {[%clk 0:01:30.3]} 44. Rd1 {[%clk 0:00:02.4]} 44... b2 {[%clk
0:01:29]} 45. Rb1 {[%clk 0:00:01.9]} 45... Rb3 {[%clk 0:01:29.1]} 46. Kf2 {[%clk
0:00:01.5]} 46... Kd5 {[%clk 0:01:29.2]} 47. Ke2 {[%clk 0:00:01.9]} 47... Kxe5
{[%clk 0:01:29.4]} 48. Kd2 {[%clk 0:00:02.2]} 48... Kf4 {[%clk 0:01:29.3]} 0-1

[Event "Early-Titled-Tuesday-Blitz-March-26-2024"]
[Site "Chess.com"]
[Date "2024.03.26"]
[Round "6"]
[White "kidagent"]
[Black "YegoryoCh"]
[Result "0-1"]
[WhiteElo "2324"]
[BlackElo "2501"]
[TimeControl "180+1"]
[EndTime "9:04:12 PDT"]
[Termination "YegoryoCh won by checkmate"]

1. e4 {[%clk 0:02:35.2]} 1... e5 {[%clk 0:02:58.7]} 2. Nf3 {[%clk 0:02:35]} 2...
Nc6 {[%clk 0:02:59.2]} 3. Bb5 {[%clk 0:02:35.6]} 3... a6 {[%clk 0:02:59.6]} 4.
Ba4 {[%clk 0:02:36]} 4... d6 {[%clk 0:03:00.2]} 5. O-O {[%clk 0:02:35.8]} 5...
Bd7 {[%clk 0:03:00.4]} 6. c3 {[%clk 0:02:34.8]} 6... g5 {[%clk 0:03:00.7]} 7. d4
{[%clk 0:02:23.4]} 7... g4 {[%clk 0:03:00.8]} 8. Ne1 {[%clk 0:02:15.6]} 8... h5
{[%clk 0:03:01.5]} 9. f3 {[%clk 0:02:09.2]} 9... Bh6 {[%clk 0:02:51.1]} 10. d5
{[%clk 0:02:02.3]} 10... Nce7 {[%clk 0:02:47.7]} 11. Nd3 {[%clk 0:01:51.6]}
11... Ng6 {[%clk 0:02:45.8]} 12. Bxh6 {[%clk 0:01:41.8]} 12... Nxh6 {[%clk
0:02:46.7]} 13. Nd2 {[%clk 0:01:41.7]} 13... O-O {[%clk 0:02:28.8]} 14. f4
{[%clk 0:01:38]} 14... exf4 {[%clk 0:02:27.1]} 15. Nxf4 {[%clk 0:01:37.8]} 15...
Nxf4 {[%clk 0:02:24.1]} 16. Rxf4 {[%clk 0:01:38.7]} 16... Qg5 {[%clk 0:02:22.4]}
17. g3 {[%clk 0:01:38.9]} 17... Bxa4 {[%clk 0:02:19.8]} 18. Qxa4 {[%clk
0:01:39]} 18... f5 {[%clk 0:02:20.1]} 19. Raf1 {[%clk 0:01:37]} 19... h4 {[%clk
0:02:11.2]} 20. exf5 {[%clk 0:01:22.8]} 20... hxg3 {[%clk 0:02:08.4]} 21. hxg3
{[%clk 0:01:21.8]} 21... Rxf5 {[%clk 0:02:08.5]} 22. Qd7 {[%clk 0:01:13.9]}
22... Rxf4 {[%clk 0:01:49.4]} 23. Rxf4 {[%clk 0:01:12]} 23... Qxd5 {[%clk
0:01:46.6]} 24. Ne4 {[%clk 0:01:11.8]} 24... Rf8 {[%clk 0:01:13.4]} 25. Nf6+
{[%clk 0:00:51.9]} 25... Rxf6 {[%clk 0:01:13.2]} 26. Rxf6 {[%clk 0:00:52.1]}
26... Qc5+ {[%clk 0:01:13.8]} 27. Kh2 {[%clk 0:00:37.9]} 27... Qh5+ {[%clk
0:01:13.4]} 28. Kg1 {[%clk 0:00:33.8]} 28... Qc5+ {[%clk 0:01:12]} 29. Rf2
{[%clk 0:00:33.8]} 29... Qe3 {[%clk 0:01:09.3]} 30. Qd8+ {[%clk 0:00:30]} 30...
Kh7 {[%clk 0:01:08.4]} 31. Qd7+ {[%clk 0:00:13]} 31... Kg6 {[%clk 0:01:04.1]}
32. Kg2 {[%clk 0:00:10.7]} 32... Qe4+ {[%clk 0:01:00.9]} 33. Kg1 {[%clk
0:00:10.9]} 33... Nf5 {[%clk 0:00:55.4]} 34. Qxc7 {[%clk 0:00:06.8]} 34... Qe1+
{[%clk 0:00:54.7]} 35. Kg2 {[%clk 0:00:06.6]} 35... Ne3+ {[%clk 0:00:54.5]} 36.
Kh2 {[%clk 0:00:06.3]} 36... Qxf2+ {[%clk 0:00:54.8]} 37. Kh1 {[%clk 0:00:06.7]}
37... Qg2# {[%clk 0:00:55]} 0-1

[Event "Early-Titled-Tuesday-Blitz-March-26-2024"]
[Site "Chess.com"]
[Date "2024.03.26"]
[Round "6"]
[White "Kazmin_Semyon"]
[Black "baki83"]
[Result "0-1"]
[WhiteElo "2591"]
[BlackElo "2866"]
[TimeControl "180+1"]
[EndTime "9:04:13 PDT"]
[Termination "baki83 won by resignation"]

1. e4 {[%clk 0:03:00.9]} 1... c5 {[%clk 0:02:57.2]} 2. Nf3 {[%clk 0:03:01.1]}
2... d6 {[%clk 0:02:57.3]} 3. d4 {[%clk 0:03:00.7]} 3... cxd4 {[%clk 0:02:57.6]}
4. Nxd4 {[%clk 0:03:01.6]} 4... Nf6 {[%clk 0:02:58]} 5. Nc3 {[%clk 0:03:01.2]}
5... a6 {[%clk 0:02:58.5]} 6. Bg5 {[%clk 0:03:01.6]} 6... Nbd7 {[%clk
0:02:57.4]} 7. Qe2 {[%clk 0:03:01.3]} 7... h6 {[%clk 0:02:56.4]} 8. Bh4 {[%clk
0:03:01.1]} 8... g6 {[%clk 0:02:56.3]} 9. O-O-O {[%clk 0:02:59.6]} 9... Bg7
{[%clk 0:02:56.1]} 10. f4 {[%clk 0:02:57.3]} 10... Qc7 {[%clk 0:02:55.3]} 11. g4
{[%clk 0:02:52.8]} 11... O-O {[%clk 0:02:16.8]} 12. g5 {[%clk 0:02:48.5]} 12...
hxg5 {[%clk 0:02:16.2]} 13. Bxg5 {[%clk 0:02:28.3]} 13... e5 {[%clk 0:02:10.8]}
14. fxe5 {[%clk 0:02:19]} 14... dxe5 {[%clk 0:02:11.7]} 15. Nb3 {[%clk 0:02:14]}
15... Nb6 {[%clk 0:01:57.5]} 16. Rg1 {[%clk 0:01:58.2]} 16... Be6 {[%clk
0:01:45.7]} 17. Qf2 {[%clk 0:01:34.1]} 17... Nh5 {[%clk 0:01:38.7]} 18. Nd5
{[%clk 0:00:57.8]} 18... Nxd5 {[%clk 0:01:18.3]} 19. exd5 {[%clk 0:00:58.7]}
19... Bf5 {[%clk 0:01:18.8]} 20. d6 {[%clk 0:00:57.2]} 20... Qc6 {[%clk
0:01:15.3]} 21. Bg2 {[%clk 0:00:53.5]} 21... Qa4 {[%clk 0:01:10.9]} 22. Bxb7
{[%clk 0:00:25.6]} 22... Rab8 {[%clk 0:00:56.9]} 23. Qa7 {[%clk 0:00:06.9]}
23... Qxa2 {[%clk 0:00:45.5]} 24. d7 {[%clk 0:00:07.3]} 24... e4 {[%clk
0:00:45.9]} 25. Rd4 {[%clk 0:00:03.1]} 25... Rxb7 {[%clk 0:00:38]} 26. Qxb7
{[%clk 0:00:03.2]} 26... Bxd4 {[%clk 0:00:38.3]} 27. Nxd4 {[%clk 0:00:03.8]}
27... Qa1+ {[%clk 0:00:38.4]} 28. Kd2 {[%clk 0:00:04.4]} 28... Qxg1 {[%clk
0:00:38.8]} 29. d8=Q {[%clk 0:00:04.7]} 29... Rxd8 {[%clk 0:00:37.9]} 30. Bxd8
{[%clk 0:00:05.1]} 30... Qxd4+ {[%clk 0:00:38.3]} 0-1

[Event "Early-Titled-Tuesday-Blitz-March-26-2024"]
[Site "Chess.com"]
[Date "2024.03.26"]
[Round "6"]
[White "guillembaches"]
[Black "BallottiLuca"]
[Result "1-0"]
[WhiteElo "2530"]
[BlackElo "2359"]
[TimeControl "180+1"]
[EndTime "9:04:14 PDT"]
[Termination "guillembaches won by checkmate"]

1. d4 {[%clk 0:03:00.9]} 1... Nf6 {[%clk 0:02:57.1]} 2. Nf3 {[%clk 0:03:01.8]}
2... g6 {[%clk 0:02:55.4]} 3. Bg5 {[%clk 0:03:02.2]} 3... Bg7 {[%clk 0:02:54.1]}
4. Nbd2 {[%clk 0:03:01.5]} 4... O-O {[%clk 0:02:51.6]} 5. c3 {[%clk 0:03:01.4]}
5... d5 {[%clk 0:02:50.3]} 6. e3 {[%clk 0:03:01.4]} 6... Nbd7 {[%clk 0:02:48.8]}
7. Be2 {[%clk 0:03:01.6]} 7... Re8 {[%clk 0:02:45.8]} 8. O-O {[%clk 0:03:01.7]}
8... e5 {[%clk 0:02:43.7]} 9. h3 {[%clk 0:03:01.9]} 9... e4 {[%clk 0:02:37.2]}
10. Nh2 {[%clk 0:03:02]} 10... h6 {[%clk 0:02:35.4]} 11. Bh4 {[%clk 0:02:59.8]}
11... c6 {[%clk 0:02:29.5]} 12. b4 {[%clk 0:02:56.9]} 12... Qe7 {[%clk
0:02:15.4]} 13. Qb3 {[%clk 0:02:51.9]} 13... Qe6 {[%clk 0:02:01.8]} 14. a4
{[%clk 0:02:48.9]} 14... g5 {[%clk 0:02:01.5]} 15. Bg3 {[%clk 0:02:48.4]} 15...
h5 {[%clk 0:01:58.8]} 16. c4 {[%clk 0:02:41.7]} 16... h4 {[%clk 0:01:56.5]} 17.
Bc7 {[%clk 0:02:41.4]} 17... b6 {[%clk 0:01:42.8]} 18. a5 {[%clk 0:02:29.4]}
18... Bb7 {[%clk 0:01:38]} 19. axb6 {[%clk 0:02:14.3]} 19... axb6 {[%clk
0:01:38.9]} 20. c5 {[%clk 0:02:13.6]} 20... b5 {[%clk 0:01:28.7]} 21. Qb2 {[%clk
0:02:06.4]} 21... Nf8 {[%clk 0:01:28.1]} 22. Rxa8 {[%clk 0:02:03.1]} 22... Rxa8
{[%clk 0:01:27.4]} 23. Ra1 {[%clk 0:02:03.2]} 23... Qc8 {[%clk 0:01:22]} 24. Be5
{[%clk 0:01:55.7]} 24... N6d7 {[%clk 0:01:12.2]} 25. Bd6 {[%clk 0:01:50.1]}
25... f5 {[%clk 0:01:05.3]} 26. Nb3 {[%clk 0:01:43.9]} 26... Rxa1+ {[%clk
0:01:00.4]} 27. Qxa1 {[%clk 0:01:43.6]} 27... Ne6 {[%clk 0:00:58.6]} 28. Qa7
{[%clk 0:01:33.7]} 28... Bf8 {[%clk 0:00:37.9]} 29. Na5 {[%clk 0:01:17.7]} 29...
Bxd6 {[%clk 0:00:25.2]} 30. cxd6 {[%clk 0:01:14.1]} 30... Nd8 {[%clk 0:00:25.2]}
31. Bh5 {[%clk 0:01:05.5]} 31... Kf8 {[%clk 0:00:20.3]} 32. Bg6 {[%clk
0:01:02.1]} 32... f4 {[%clk 0:00:18.2]} 33. Bf5 {[%clk 0:00:59.7]} 33... Kf7
{[%clk 0:00:14.7]} 34. Ng4 {[%clk 0:00:57.7]} 34... Ke8 {[%clk 0:00:02.3]} 35.
Nf6+ {[%clk 0:00:48.7]} 35... Nxf6 {[%clk 0:00:02.5]} 36. Bxc8 {[%clk 0:00:49]}
36... Bxc8 {[%clk 0:00:03.1]} 37. Qe7# {[%clk 0:00:48.3]} 1-0

[Event "Early-Titled-Tuesday-Blitz-March-26-2024"]
[Site "Chess.com"]
[Date "2024.03.26"]
[Round "6"]
[White "the_chess_child"]
[Black "NovoselovRoman"]
[Result "1-0"]
[WhiteElo "2853"]
[BlackElo "2549"]
[TimeControl "180+1"]
[EndTime "9:04:16 PDT"]
[Termination "the_chess_child won on time"]

1. e4 {[%clk 0:03:00.9]} 1... e6 {[%clk 0:02:59.2]} 2. d3 {[%clk 0:03:00.6]}
2... d5 {[%clk 0:02:59.9]} 3. Nd2 {[%clk 0:03:01.1]} 3... Nf6 {[%clk 0:03:00.2]}
4. Ngf3 {[%clk 0:03:01]} 4... c5 {[%clk 0:03:00.5]} 5. g3 {[%clk 0:03:01.1]}
5... Nc6 {[%clk 0:03:01]} 6. Bg2 {[%clk 0:03:01.4]} 6... Be7 {[%clk 0:03:01.6]}
7. O-O {[%clk 0:03:01.6]} 7... O-O {[%clk 0:03:02.2]} 8. Re1 {[%clk 0:03:02.1]}
8... b6 {[%clk 0:02:54.9]} 9. e5 {[%clk 0:03:01.3]} 9... Nd7 {[%clk 0:02:54.6]}
10. Nf1 {[%clk 0:03:01.5]} 10... Bb7 {[%clk 0:02:53.4]} 11. h4 {[%clk
0:03:01.5]} 11... d4 {[%clk 0:02:40]} 12. Bf4 {[%clk 0:03:00.7]} 12... b5 {[%clk
0:02:39.4]} 13. N1h2 {[%clk 0:02:59.1]} 13... Nb6 {[%clk 0:02:38.4]} 14. Ng5
{[%clk 0:02:56.9]} 14... Nd5 {[%clk 0:02:26.9]} 15. Qh5 {[%clk 0:02:55.9]} 15...
h6 {[%clk 0:02:23.5]} 16. Ng4 {[%clk 0:02:50.5]} 16... Nxf4 {[%clk 0:02:08.3]}
17. gxf4 {[%clk 0:02:44.3]} 17... Na5 {[%clk 0:01:56.5]} 18. Nxh6+ {[%clk
0:02:26]} 18... gxh6 {[%clk 0:01:56.1]} 19. Qxh6 {[%clk 0:02:26.1]} 19... Bxg5
{[%clk 0:01:52]} 20. hxg5 {[%clk 0:02:27]} 20... Qe7 {[%clk 0:01:41.4]} 21. Bxb7
{[%clk 0:02:18.7]} 21... Nxb7 {[%clk 0:01:40.9]} 22. Kg2 {[%clk 0:02:18]} 22...
f5 {[%clk 0:01:40.9]} 23. gxf6 {[%clk 0:01:49.8]} 23... Qh7 {[%clk 0:01:37]} 24.
Qg5+ {[%clk 0:01:49.9]} 24... Kf7 {[%clk 0:01:30]} 25. Rh1 {[%clk 0:01:49.8]}
25... Qg8 {[%clk 0:01:07.8]} 26. Qxg8+ {[%clk 0:01:38.5]} 26... Rxg8+ {[%clk
0:01:07.4]} 27. Kf3 {[%clk 0:01:38.4]} 27... Rh8 {[%clk 0:00:56]} 28. Rag1
{[%clk 0:01:37.3]} 28... Rxh1 {[%clk 0:00:52.6]} 29. Rxh1 {[%clk 0:01:36.7]}
29... Na5 {[%clk 0:00:37.7]} 30. Rh7+ {[%clk 0:01:32.8]} 30... Kg6 {[%clk
0:00:38.2]} 31. Rg7+ {[%clk 0:01:32.9]} 31... Kh6 {[%clk 0:00:38.6]} 32. Ke4
{[%clk 0:01:32.8]} 32... Nc6 {[%clk 0:00:27.6]} 33. f5 {[%clk 0:01:29.7]} 33...
Re8 {[%clk 0:00:24]} 34. f4 {[%clk 0:01:17.3]} 34... exf5+ {[%clk 0:00:16.7]}
35. Kxf5 {[%clk 0:01:18.2]} 35... Nb4 {[%clk 0:00:17.1]} 36. Rg2 {[%clk
0:01:17.3]} 36... Kh7 {[%clk 0:00:14.5]} 37. f7 {[%clk 0:01:17.8]} 37... Rf8
{[%clk 0:00:13.7]} 38. Kf6 {[%clk 0:01:18.3]} 38... Nd5+ {[%clk 0:00:13.3]} 39.
Ke6 {[%clk 0:01:10]} 39... Nxf4+ {[%clk 0:00:13.2]} 40. Ke7 {[%clk 0:01:10.5]}
40... Rxf7+ {[%clk 0:00:04.3]} 41. Kxf7 {[%clk 0:01:11.4]} 41... Nxg2 {[%clk
0:00:04.8]} 42. e6 {[%clk 0:01:11.9]} 42... Nf4 {[%clk 0:00:03.2]} 43. e7 {[%clk
0:01:11.9]} 1-0

[Event "Early-Titled-Tuesday-Blitz-March-26-2024"]
[Site "Chess.com"]
[Date "2024.03.26"]
[Round "6"]
[White "abelmat"]
[Black "rionelG"]
[Result "0-1"]
[WhiteElo "2069"]
[BlackElo "2206"]
[TimeControl "180+1"]
[EndTime "9:04:18 PDT"]
[Termination "rionelG won by checkmate"]

1. d4 {[%clk 0:03:00.9]} 1... d5 {[%clk 0:02:59.5]} 2. c4 {[%clk 0:03:00.8]}
2... e6 {[%clk 0:02:59.6]} 3. Nf3 {[%clk 0:03:01.3]} 3... Nf6 {[%clk 0:02:59.7]}
4. Nc3 {[%clk 0:03:00.6]} 4... c6 {[%clk 0:02:59.4]} 5. e3 {[%clk 0:03:00]} 5...
Nbd7 {[%clk 0:02:58.2]} 6. Bd3 {[%clk 0:03:00.4]} 6... dxc4 {[%clk 0:02:55.6]}
7. Bxc4 {[%clk 0:03:00.6]} 7... b5 {[%clk 0:02:56]} 8. Bd3 {[%clk 0:03:01]} 8...
Bb7 {[%clk 0:02:56.6]} 9. e4 {[%clk 0:03:01.3]} 9... b4 {[%clk 0:02:53.8]} 10.
Ne2 {[%clk 0:02:58.5]} 10... c5 {[%clk 0:02:51.7]} 11. Ng3 {[%clk 0:02:49.3]}
11... cxd4 {[%clk 0:02:39.1]} 12. Nxd4 {[%clk 0:02:48.3]} 12... Bc5 {[%clk
0:02:37.6]} 13. Nf3 {[%clk 0:02:39.3]} 13... O-O {[%clk 0:02:36.6]} 14. O-O
{[%clk 0:02:38.8]} 14... Qb6 {[%clk 0:02:21.9]} 15. Qe2 {[%clk 0:02:26.8]} 15...
Rad8 {[%clk 0:02:10.5]} 16. Bg5 {[%clk 0:02:22.1]} 16... h6 {[%clk 0:02:09.2]}
17. Bf4 {[%clk 0:02:04.8]} 17... Ng4 {[%clk 0:01:58.1]} 18. Rad1 {[%clk
0:01:29.4]} 18... Nb8 {[%clk 0:01:15.2]} 19. e5 {[%clk 0:01:14.9]} 19... Rxd3
{[%clk 0:00:52.1]} 20. Rxd3 {[%clk 0:01:12.4]} 20... Ba6 {[%clk 0:00:52.6]} 21.
Qd2 {[%clk 0:00:24.7]} 21... Nxf2 {[%clk 0:00:42.7]} 22. Be3 {[%clk 0:00:13]}
22... Nxd3 {[%clk 0:00:41.2]} 23. Bxc5 {[%clk 0:00:10.6]} 23... Nxc5 {[%clk
0:00:41]} 24. Kh1 {[%clk 0:00:09.9]} 24... Bxf1 {[%clk 0:00:39.5]} 25. Nxf1
{[%clk 0:00:09.5]} 25... Rd8 {[%clk 0:00:39.3]} 26. Qf4 {[%clk 0:00:08.7]} 26...
Nd3 {[%clk 0:00:38.3]} 27. Qg4 {[%clk 0:00:07.7]} 27... Nf2+ {[%clk 0:00:38.5]}
28. Kg1 {[%clk 0:00:06.3]} 28... Nh3+ {[%clk 0:00:38.4]} 29. Kh1 {[%clk
0:00:07.2]} 29... Qg1+ {[%clk 0:00:35.6]} 30. Nxg1 {[%clk 0:00:05.6]} 30... Nf2#
{[%clk 0:00:36.5]} 0-1

[Event "Early-Titled-Tuesday-Blitz-March-26-2024"]
[Site "Chess.com"]
[Date "2024.03.26"]
[Round "6"]
[White "Xavier_mompel"]
[Black "yuriydovzik"]
[Result "1/2-1/2"]
[WhiteElo "2341"]
[BlackElo "2132"]
[TimeControl "180+1"]
[EndTime "9:04:20 PDT"]
[Termination "Game drawn by agreement"]

1. e4 {[%clk 0:03:00.9]} 1... c6 {[%clk 0:02:59.2]} 2. d4 {[%clk 0:02:56.5]}
2... Na6 {[%clk 0:02:58.6]} 3. Bxa6 {[%clk 0:02:53.5]} 3... Qa5+ {[%clk
0:02:57.8]} 4. Nc3 {[%clk 0:02:54.1]} 4... Qxa6 {[%clk 0:02:57.9]} 5. Nf3 {[%clk
0:02:47.2]} 5... g6 {[%clk 0:02:53.3]} 6. Qe2 {[%clk 0:02:47.3]} 6... Qxe2+
{[%clk 0:02:50.9]} 7. Kxe2 {[%clk 0:02:48.2]} 7... b6 {[%clk 0:02:47.7]} 8. Bf4
{[%clk 0:02:46.8]} 8... Bg7 {[%clk 0:02:44.1]} 9. a4 {[%clk 0:02:46.4]} 9... Nf6
{[%clk 0:02:36.8]} 10. Rhd1 {[%clk 0:02:41.8]} 10... O-O {[%clk 0:02:34.3]} 11.
e5 {[%clk 0:02:35.2]} 11... Ba6+ {[%clk 0:02:31.4]} 12. Ke1 {[%clk 0:02:28.3]}
12... Nd5 {[%clk 0:02:22.9]} 13. Nxd5 {[%clk 0:02:22.5]} 13... cxd5 {[%clk
0:02:22.4]} 14. a5 {[%clk 0:02:18.5]} 14... Rfc8 {[%clk 0:01:57.6]} 15. Kd2
{[%clk 0:02:12.3]} 15... e6 {[%clk 0:01:53.8]} 16. Ra4 {[%clk 0:01:32.7]} 16...
Bb5 {[%clk 0:01:29.6]} 17. Rb4 {[%clk 0:01:30.7]} 17... a6 {[%clk 0:01:28.7]}
18. axb6 {[%clk 0:01:22.8]} 18... Rab8 {[%clk 0:01:27.1]} 19. Rb3 {[%clk
0:01:08.9]} 19... Rxb6 {[%clk 0:01:25.7]} 20. Ne1 {[%clk 0:01:02.8]} 20... Rbc6
{[%clk 0:01:23.1]} 21. Rc3 {[%clk 0:00:43.7]} 21... Rxc3 {[%clk 0:01:13.9]} 22.
bxc3 {[%clk 0:00:44.6]} 22... a5 {[%clk 0:01:08.8]} 23. Ra1 {[%clk 0:00:42]}
23... a4 {[%clk 0:01:06.1]} 24. Nd3 {[%clk 0:00:40.6]} 24... Bf8 {[%clk
0:00:55.5]} 25. Nb4 {[%clk 0:00:16.5]} 25... h6 {[%clk 0:00:48.5]} 26. h4 {[%clk
0:00:15.7]} 26... Rc4 {[%clk 0:00:47.4]} 27. Rb1 {[%clk 0:00:10.8]} 27... Bxb4
{[%clk 0:00:38.1]} 28. Rxb4 {[%clk 0:00:07.4]} 28... Rxb4 {[%clk 0:00:37.6]} 29.
cxb4 {[%clk 0:00:08.3]} 29... a3 {[%clk 0:00:35.9]} 30. Kc3 {[%clk 0:00:05.7]}
30... Kg7 {[%clk 0:00:31.6]} 31. Kb3 {[%clk 0:00:04.8]} 1/2-1/2

[Event "Early-Titled-Tuesday-Blitz-March-26-2024"]
[Site "Chess.com"]
[Date "2024.03.26"]
[Round "6"]
[White "TigrVShlyape"]
[Black "DenLaz"]
[Result "1/2-1/2"]
[WhiteElo "2918"]
[BlackElo "3084"]
[TimeControl "180+1"]
[EndTime "9:04:23 PDT"]
[Termination "Game drawn by agreement"]

1. e4 {[%clk 0:03:00.9]} 1... c5 {[%clk 0:02:57.7]} 2. Nf3 {[%clk 0:03:00.1]}
2... e6 {[%clk 0:02:58.4]} 3. d4 {[%clk 0:02:58.9]} 3... cxd4 {[%clk 0:02:59]}
4. Nxd4 {[%clk 0:02:59.2]} 4... Nc6 {[%clk 0:02:59.7]} 5. Nb5 {[%clk 0:02:48.9]}
5... d6 {[%clk 0:02:59.8]} 6. c4 {[%clk 0:02:49]} 6... Nf6 {[%clk 0:02:59.3]} 7.
N1c3 {[%clk 0:02:48.8]} 7... a6 {[%clk 0:02:59.6]} 8. Nd4 {[%clk 0:02:49]} 8...
Be7 {[%clk 0:02:52.1]} 9. Be2 {[%clk 0:02:48.9]} 9... O-O {[%clk 0:02:52]} 10.
O-O {[%clk 0:02:49.3]} 10... Bd7 {[%clk 0:02:52.7]} 11. Be3 {[%clk 0:02:48.7]}
11... Rc8 {[%clk 0:02:52.9]} 12. Rc1 {[%clk 0:02:48.3]} 12... Qa5 {[%clk
0:02:47.4]} 13. f3 {[%clk 0:02:29.7]} 13... Ne5 {[%clk 0:02:42.4]} 14. Qb3
{[%clk 0:02:16.4]} 14... Qc7 {[%clk 0:02:30.6]} 15. Na4 {[%clk 0:02:11.4]} 15...
Bxa4 {[%clk 0:02:26.3]} 16. Qxa4 {[%clk 0:02:10.6]} 16... Nfd7 {[%clk
0:02:26.9]} 17. Qd1 {[%clk 0:01:58.5]} 17... Rfd8 {[%clk 0:02:12.5]} 18. Qd2
{[%clk 0:01:54.9]} 18... Nb8 {[%clk 0:02:03.1]} 19. f4 {[%clk 0:01:49.7]} 19...
Nec6 {[%clk 0:02:02.3]} 20. f5 {[%clk 0:01:20.5]} 20... Nxd4 {[%clk 0:02:00.8]}
21. Bxd4 {[%clk 0:01:20.7]} 21... Nc6 {[%clk 0:01:49.5]} 22. fxe6 {[%clk
0:01:19.2]} 22... fxe6 {[%clk 0:01:45.3]} 23. Bg4 {[%clk 0:01:19]} 23... Qd7
{[%clk 0:01:25]} 24. Bc3 {[%clk 0:01:14.1]} 24... h6 {[%clk 0:01:03.2]} 25. Rcd1
{[%clk 0:01:08.6]} 25... Bg5 {[%clk 0:01:00.8]} 26. Qd3 {[%clk 0:01:07]} 26...
Qe7 {[%clk 0:01:00.4]} 27. Qh3 {[%clk 0:01:05.5]} 27... Re8 {[%clk 0:00:59.4]}
28. Kh1 {[%clk 0:01:04.5]} 28... Ne5 {[%clk 0:00:45.4]} 29. Bh5 {[%clk
0:00:58.3]} 29... Rf8 {[%clk 0:00:44.8]} 30. b3 {[%clk 0:00:54.4]} 30... b5
{[%clk 0:00:41.9]} 31. Bxe5 {[%clk 0:00:52.1]} 31... dxe5 {[%clk 0:00:41.9]} 32.
Be2 {[%clk 0:00:50.1]} 32... b4 {[%clk 0:00:36.7]} 33. Bg4 {[%clk 0:00:47.1]}
33... Rxf1+ {[%clk 0:00:33.8]} 34. Rxf1 {[%clk 0:00:46.4]} 34... Re8 {[%clk
0:00:34.5]} 35. g3 {[%clk 0:00:44.3]} 35... a5 {[%clk 0:00:33.6]} 36. Qh5 {[%clk
0:00:42.6]} 36... Rf8 {[%clk 0:00:32.4]} 37. Rxf8+ {[%clk 0:00:41.8]} 37... Kxf8
{[%clk 0:00:33.3]} 38. Qg6 {[%clk 0:00:40.6]} 38... Qf7 {[%clk 0:00:32.7]} 39.
Qxf7+ {[%clk 0:00:39.5]} 39... Kxf7 {[%clk 0:00:33.6]} 40. c5 {[%clk 0:00:39.1]}
40... Be3 {[%clk 0:00:33.4]} 41. c6 {[%clk 0:00:39.3]} 41... Ke7 {[%clk
0:00:32.3]} 42. Be2 {[%clk 0:00:37.2]} 42... Kd6 {[%clk 0:00:32.3]} 43. Bb5
{[%clk 0:00:37]} 43... Bb6 {[%clk 0:00:32.9]} 44. Kg2 {[%clk 0:00:36.9]} 44...
Kc5 {[%clk 0:00:33.1]} 45. Bc4 {[%clk 0:00:35.2]} 45... Kxc6 {[%clk 0:00:33.3]}
46. Bxe6 {[%clk 0:00:35.3]} 46... Kd6 {[%clk 0:00:34.2]} 1/2-1/2